Cogmind - Beta 15 @@@ ROGUE MODE // 2025.07.30 @ 14:59:09 Player: Spoodle Result: Destroyed by Overlord with Heavy Hardcell Cannon Performance ------------- Evolutions (8) 4000 Regions Visited (24) 4800 Robots Destroyed (297) 1485 Value Destroyed (14855) 14855 Prototype IDs (91) 1820 Alien Tech Used (11) 2200 Bonus (5247) 5247 TOTAL SCORE: 34407 Bonus ------- High Alert Combat Kills 1546 Follower Combat Kills 3732 Network Hubs Disabled 200 Registered with UFD 300 Met Optimus in HQ 500 Met Imprinter 300 Met Zhirov 300 Built Enhanced Grunts 300 Met R17 at Cetus 500 Acquired SGEMP 2000 Friendly Fire -4431 Cogmind --------- Core Integrity 0/1450 Matter 206/300 Energy 240/240 System Corruption 0% Temperature Cool (0) Movement Walking (110) Location -2/Protoforge Parts ------- > --- POWER (3) -------- Zero-point Reactor > --- PROPULSION (6) --- Advanced Myomer Leg Myomer Exoskeleton > --- UTILITY (12) ----- Experimental Heat Sink Huge Storage Unit Experimental Signal Interpreter Terrain Scan Processor Experimental Targeting Computer Advanced Target Analyzer AEGIS Remote Shield Improved System Guard > --- WEAPON (3) ------- Heavy Dispersion Rifle > --- INVENTORY (25) --- Advanced Myomer Leg Experimental Cooling System Advanced Coolant Injector Advanced Visual Processing Unit Terrain Scanner Advanced Transmission Jammer Improved Cloaking Device Experimental Hardlight Generator Dimensional Node Initializer Enhanced Quantum Rifle Core Cannon Advanced Remote Datajack SGEMP Prototype Peak State ------------ > --- POWER ------------ Quantum Reactor Light Quantum Reactor Zero-point Reactor > --- PROPULSION ------- Advanced Myomer Leg Cargo Legs Enhanced Biometal Leg Heavy Shield Leg > --- UTILITY ---------- Scrap Suit Experimental Cooling System Advanced Coolant Injector Huge Storage Unit Experimental Sensor Array Experimental Signal Interpreter Advanced Terrain Scan Processor Experimental Targeting Computer Particle Accelerator Advanced Transmission Jammer Phase Armor Improved System Guard > --- WEAPON ----------- Overtuned Beamcaster Overtuned Beamcaster Advanced Remote Datajack > --- INVENTORY -------- Light Quantum Reactor Zero-point Reactor Advanced Myomer Leg Myomer Exoskeleton Terrain Scanner Improved Cloaking Device Centrium Medium Armor Plating Centrium Medium Armor Plating Centrium Medium Armor Plating Experimental Hardlight Generator AEGIS Remote Shield Dimensional Node Initializer High-powered Transdimensional Reconstructor Subatomic Replicator Enhanced Gamma Rifle Overtuned Beamcaster Precision Phase Gun Heavy Dispersion Rifle Enhanced Quantum Rifle Core Cannon SGEMP Prototype [Rating: 226] Favorites ----------- Power Angular Momentum Engine Engine Angular Momentum Engine Power Core Reinforced Fission Core Reactor Light Quantum Reactor Propulsion Armored Medium Treads Treads Armored Medium Treads Leg Advanced Myomer Leg Wheel Overtuned Scrapsphere Utility Scrap Suit Device Scrap Suit Storage Huge Storage Unit Processor Advanced Signal Interpreter Hackware Authchip [R/Combat] Protection Enhanced Scrap Shield Artifact Phase Armor Weapon Overtuned Beamcaster Energy Gun Overtuned Beamcaster Energy Cannon Subdweller Beam Cannon Ballistic Gun Overtuned Coil Gun Ballistic Cannon Improved Light Cannon Launcher Subdweller Shrapnel Launcher Special Weapon Remote Datajack Impact Weapon Thunder Hammer Slashing Weapon Makeshift Sword Build | -11 -10 -10 -10 -9 -9 -6 -6 -6 -5 -5 -5 -5 -5 -4 -4 -4 -4 -4 -4 -3 -3 -2 -2 -2 ------- Run | Yrd Mat Min Sub Rec Scr Fac Low Zio Pro Fac Upp Upp Zhi Pro Fac Ext Cet Arc Hub Res Tes Res Qua Frg Slots Evolved 16 | . . . . . . 8 . . . 2 . . . . 2 . . . . 2 . 2 . . Power 2 | . . . . . . 1 . . . . . . . . . . . . . 1 . . . . Propulsion 4 | . . . . . . 2 . . . 2 . . . . . . . . . . . . . . Utility 10 | . . . . . . 5 . . . . . . . . 2 . . . . 1 . 2 . . Weapon . | . . . . . . . . . . . . . . . . . . . . . . . . . Parts Attached 205 | 7 20 . 16 . 5 22 5 1 2 20 1 . 6 . 7 9 9 2 1 13 22 14 17 6 Power 35 | 1 2 . 2 . 1 3 1 . . 4 . . 2 . . 2 2 1 . 3 2 4 4 1 Engine 8 | 1 2 . 2 . 1 1 1 . . . . . . . . . . . . . . . . . Core 10 | . . . . . . 2 . . . 4 . . 1 . . 2 . . . 1 . . . . Reactor 17 | . . . . . . . . . . . . . 1 . . . 2 1 . 2 2 4 4 1 Propulsion 40 | 2 4 . 4 . 1 4 1 1 1 7 . . 2 . . . 2 . . 4 4 1 2 . Treads 16 | . 2 . 2 . . 2 . . . 6 . . 1 . . . 2 . . 1 . . . . Leg 18 | 2 2 . . . . . 1 1 1 . . . 1 . . . . . . 3 4 1 2 . Wheel 6 | . . . 2 . 1 2 . . . 1 . . . . . . . . . . . . . . Hover . | . . . . . . . . . . . . . . . . . . . . . . . . . Flight . | . . . . . . . . . . . . . . . . . . . . . . . . . Utility 78 | 2 4 . 3 . . 9 2 . 1 6 1 . 1 . 5 6 3 1 1 5 10 8 5 5 Device 51 | 1 2 . 2 . . 7 . . 1 4 1 . . . 4 5 1 1 1 4 8 5 2 2 Storage 7 | 1 2 . 1 . . 1 . . . . . . . . . 1 . . . . . 1 . . Processor 12 | . . . . . . 1 . . . 1 . . . . 1 . . . . 1 2 2 2 2 Hackware 1 | . . . . . . . . . . 1 . . . . . . . . . . . . . . Protection 6 | . . . . . . . 2 . . . . . 1 . . . 2 . . . . . . 1 Artifact 1 | . . . . . . . . . . . . . . . . . . . . . . . 1 . Weapon 52 | 2 10 . 7 . 3 6 1 . . 3 . . 1 . 2 1 2 . . 1 6 1 6 . Energy Gun 17 | 1 4 . 1 . . 2 . . . 2 . . . . 1 1 1 . . . 1 1 2 . Energy Cannon 3 | . . . . . 1 1 . . . . . . . . . . . . . . . . 1 . Ballistic Gun 6 | 1 1 . 2 . . . . . . . . . . . 1 . 1 . . . . . . . Ballistic Cannon 10 | . 4 . 2 . 1 1 . . . . . . . . . . . . . . 2 . . . Launcher 4 | . . . 2 . . . 1 . . . . . . . . . . . . 1 . . . . Special Weapon 8 | . 1 . . . 1 1 . . . 1 . . 1 . . . . . . . 2 . 1 . Impact Weapon 2 | . . . . . . . . . . . . . . . . . . . . . 1 . 1 . Slashing Weapon 2 | . . . . . . 1 . . . . . . . . . . . . . . . . 1 . Piercing Weapon . | . . . . . . . . . . . . . . . . . . . . . . . . . Special Melee Weapon . | . . . . . . . . . . . . . . . . . . . . . . . . . Unidentified Prototypes 35 | . . . . . . 1 1 . . . . 1 3 . . 1 4 . . 1 10 . 11 2 Parts Lost 20 | . 1 . 2 . . . . . . 1 . . . . 1 1 . . . . . . 1 13 Power 4 | . . . . . . . . . . . . . . . . . . . . . . . . 4 Propulsion 4 | . . . 1 . . . . . . . . . . . . . . . . . . . . 3 Utility 10 | . 1 . 1 . . . . . . 1 . . . . . 1 . . . . . . 1 5 Weapon 2 | . . . . . . . . . . . . . . . 1 . . . . . . . . 1 Highest Loss Streak 10 | . 1 . 1 . . . . . . 1 . . . . 1 1 . . . . . . 1 10 To Critical Strikes . | . . . . . . . . . . . . . . . . . . . . . . . . . Average Backups 18 | 4 10 15 17 17 15 18 19 19 19 18 19 19 19 20 20 21 22 22 22 23 22 20 20 18 Power 1 | . 1 1 1 1 . 1 1 1 1 1 2 2 2 2 2 2 2 2 2 1 2 2 2 1 Propulsion 3 | 1 1 1 2 4 3 3 4 2 2 2 5 5 5 5 5 5 4 4 4 6 3 2 2 1 Utility 8 | . 4 7 6 6 6 7 10 11 11 9 7 7 7 8 10 10 9 10 10 8 10 9 7 8 Weapon 3 | 1 3 6 6 6 4 3 2 2 2 3 3 3 3 3 2 2 3 3 3 3 4 4 4 3 Tool/Special . | . . . . . . . . . . . . . . . . . . . . . . . . . Unused Backups 65 | . 3 3 8 . 6 6 3 1 . 6 . . 2 . 2 2 3 1 1 5 4 1 2 6 Power 8 | . 1 . 2 . . 1 1 . . 1 . . . . . . . 1 . 1 . . . . Propulsion 6 | . . . . . . . 2 . . . . . 2 . 1 . 1 . . . . . . . Utility 38 | . 2 2 3 . 5 4 . 1 . 3 . . . . 1 2 2 . 1 3 4 1 . 4 Weapon 9 | . . 1 3 . 1 1 . . . 1 . . . . . . . . . 1 . . . 1 Tool/Special 4 | . . . . . . . . . . 1 . . . . . . . . . . . . 2 1 Average Slot Usage (%) 85 | . 99 100 99 100 89 89 85 84 85 73 75 74 75 77 79 80 75 75 75 77 83 87 83 82 Engine 5 | . 14 14 14 14 10 6 7 13 13 4 . . . . . . . . . . . . . . Core 3 | . . . . . . 5 5 . . 6 11 11 11 11 10 10 5 5 5 . . . . . Reactor 3 | . . . . . . . . . . . . . . . . . 4 5 5 11 12 11 11 11 Treads 12 | . 20 28 24 24 15 21 . . . 14 22 22 21 21 15 15 13 10 10 4 1 . . . Leg 4 | . 7 . . . . . 5 7 6 5 . . . . . . . . . 3 12 19 15 15 Wheel 4 | . . . 3 3 12 4 13 10 12 . . . . . 5 5 5 5 5 4 1 . . . Device 19 | . 13 14 13 14 12 25 25 26 25 19 17 16 15 16 20 20 20 20 20 24 25 25 24 22 Storage 7 | . 14 14 14 14 14 6 6 6 6 5 5 5 5 5 5 5 5 5 5 4 4 3 3 3 Processor 4 | . . . . . . 3 6 6 6 . . . . . 4 5 5 5 5 7 8 10 12 13 Protection 2 | . . . . . . . . . . 2 5 5 5 5 5 5 4 5 5 4 4 3 2 3 Energy Gun 6 | . 8 . . . . 3 7 1 6 10 11 11 11 11 9 12 10 14 14 11 10 10 9 9 Ballistic Cannon 5 | . 13 26 22 8 10 4 . . . . . . . . . . . . . . . . . . Special Weapon 1 | . . 1 . . 6 . . 4 . . . . 4 5 3 1 . . . . 1 . . . Peak Build Rating 226 | 7 12 12 17 17 24 65 71 72 72 122 114 113 120 124 135 134 142 139 143 174 204 212 226 215 Average Rating 96 | 5 9 11 13 16 19 60 69 71 70 98 109 109 116 119 128 131 131 135 139 165 178 201 204 198 On Entrance 94 | . 7 11 12 17 16 23 63 70 70 66 114 109 111 119 114 132 132 136 139 143 168 185 202 192 Naked Turns . | . . . . . . . . . . . . . . . . . . . . . . . . . Heaviest Build 189 | 12 35 35 63 63 67 115 133 120 136 153 147 147 149 151 156 157 156 150 163 189 185 187 185 185 Greatest Support 194 | 20 40 40 40 40 40 91 16 60 60 194 194 194 194 167 20 124 160 20 20 20 175 175 185 175 Greatest Overweight (x) 14 | . 1 . 3 3 4 7 8 14 8 6 2 . . 7 7 7 7 7 8 9 9 1 1 1 Average Overweight (x) 2 | . . . 1 1 2 2 7 6 6 . . . . . 7 6 6 7 7 8 2 . . . Largest Inventory Capacity 25 | 8 15 15 20 20 20 25 25 25 25 25 25 25 25 25 25 25 25 25 25 25 25 25 25 25 Average Capacity 22 | 7 12 15 18 20 19 21 25 25 25 23 25 25 25 25 25 25 25 25 25 25 25 25 25 25 Most Carried 25 | 6 15 15 20 19 20 25 25 25 25 25 24 23 25 25 25 25 25 25 25 25 25 25 25 25 Average Carried 21 | 4 10 14 17 19 17 21 24 24 24 23 23 22 23 24 24 24 24 24 24 24 24 24 24 23 Final Capacity 25 | 8 15 15 20 20 20 25 25 25 25 25 25 25 25 25 25 25 25 25 25 25 25 25 25 25 Final Carried 25 | 6 15 15 19 19 20 25 25 25 23 24 23 23 25 25 25 25 25 24 25 25 25 25 25 25 Class Distribution -------------------- 43% | Mutant 17% | Scavenger-Scrapper 13% | Scavenger-Skirmisher 7% | Scavenger-Gunner 6% | Scavenger-Tank 5% | Scrapper 4% | Scavenger-Mutant Dominant Class ---------------- Mutant | -10/Materials Mutant | -10/Mines Mutant | -10/Subcaves Mutant | -9/Recycling Mutant | -9/Scraptown Mutant | -6/Factory Scrapper | -6/Lower Caves Mutant | -6/Zion Scrapper | -5/Proximity Caves Scavenger-Mutant | -5/Factory Mutant | -5/Upper Caves Mutant | -5/Upper Caves Scavenger-Tank | -5/Zhirov Scavenger-Tank | -4/Proximity Caves Scavenger-Scrapper | -4/Factory Scavenger-Scrapper | -4/Extension Scavenger-Scrapper | -4/Cetus Scavenger-Scrapper | -4/Archives Scavenger-Scrapper | -4/Hub_04(d) Scavenger-Skirmisher | -3/Research Scavenger-Skirmisher | -3/Testing Scavenger-Skirmisher | -2/Research Scavenger-Gunner | -2/Quarantine Scavenger-Skirmisher | -2/Protoforge Resources | -11 -10 -10 -10 -9 -9 -6 -6 -6 -5 -5 -5 -5 -5 -4 -4 -4 -4 -4 -4 -3 -3 -2 -2 -2 ----------- Run | Yrd Mat Min Sub Rec Scr Fac Low Zio Pro Fac Upp Upp Zhi Pro Fac Ext Cet Arc Hub Res Tes Res Qua Frg Matter Collected 10785 | 282 501 62 686 190 45 716 330 30 90 402 364 70 . 154 632 788 477 104 377 1200 1109 930 940 306 Remotely . | . . . . . . . . . . . . . . . . . . . . . . . . . Salvage Created 15956 | 171 930 88 341 88 . 88 181 . 19 522 362 223 . . 841 2289 194 296 819 1042 1591 3412 1671 788 Parts 559 | 8 67 6 25 1 . 7 2 . 1 21 6 2 . . 30 44 7 12 26 31 47 103 78 35 Haulers Intercepted 4 | . 2 . . . . . . . . . . . . . 1 . . . 1 . . . . . Recyclers Shooed 18 | 1 1 . . . . . . . . 2 . . . . 2 1 . . . . 1 10 . . Parts Field Recycled . | . . . . . . . . . . . . . . . . . . . . . . . . . Retrieved Matter . | . . . . . . . . . . . . . . . . . . . . . . . . . Parts Self-Destructed 33 | . . . 18 . . . . . 8 . 6 1 . . . . . . . . . . . . Prevented 6 | . . . . . . . 3 . . . . 3 . . . . . . . . . . . . Kills | -11 -10 -10 -10 -9 -9 -6 -6 -6 -5 -5 -5 -5 -5 -4 -4 -4 -4 -4 -4 -3 -3 -2 -2 -2 ------- Run | Yrd Mat Min Sub Rec Scr Fac Low Zio Pro Fac Upp Upp Zhi Pro Fac Ext Cet Arc Hub Res Tes Res Qua Frg Combat Hostiles Destroyed 196 | . 19 2 17 . . 2 6 . . 18 6 1 . . 10 21 1 . 8 16 16 26 18 9 Guns 104 | . 18 . . . . 1 1 . . 5 5 . . . 6 12 . . 4 10 7 16 15 4 Cannons 20 | . 1 2 13 . . 1 . . . . . . . . . . . . . . . . . 3 AOE 25 | . . . 4 . . . 5 . . 11 . . . . 2 . . . . 3 . . . . Classes Destroyed 29 | 2 6 . 3 . . 2 3 . . 2 . 1 . . 1 . . . 2 2 1 1 . 3 Worker 8 | . . . . . . . . . . 1 . . . . . . . . 2 . 2 3 . . Builder 24 | . 1 1 . . . . . . . 2 . . . . 1 3 . . 2 . 2 5 5 2 Tunneler 4 | 4 . . . . . . . . . . . . . . . . . . . . . . . . Hauler 4 | . 2 . . . . . . . . . . . . . 1 . . . 1 . . . . . Recycler 22 | 1 1 . . 1 . . . . . . . . . . 1 5 . . 1 . 4 7 1 . Mechanic 1 | . . . . . . . . . . . . . . . . . . . . . . . . 1 Operator 15 | . 3 . . . . . . . . . . . . . . . . 8 . . . 1 2 1 Drone 1 | . . . . . . . . . . . . . . . . . . . . . . . . 1 Turret 1 | . . . 1 . . . . . . . . . . . . . . . . . . . . . Watcher 20 | . 3 . . . . 1 . . . . . . . . . 1 1 . 1 1 2 5 2 3 Swarmer 23 | . 6 . 2 . . . . . . 10 . . . . . . . . . 5 . . . . Cutter 1 | . . . . . . 1 . . . . . . . . . . . . . . . . . . Saboteur 1 | . . . . . . . . . . . . . . . . . . . . . . 1 . . Grunt 53 | . 13 2 . . . . . . . 3 5 . . . 4 13 . . 2 2 1 7 . 1 Brawler 1 | . . . . . . . . . . . . . . . . . . . . . . 1 . . Sentry 11 | . . . . . . . . . . . . 1 . . 1 5 . . . 1 . 3 . . Demolisher 1 | . . . . . . . . . . . . . . . . . . . . 1 . . . . Specialist 1 | . . . . . . . . . . . . . . . . . . . 1 . . . . . Hunter 19 | . . . . . . . . . . 3 . . . . 1 1 . . 2 4 1 2 5 . Programmer 49 | . . . . . . 1 . . . 2 1 . . . 3 2 . . 2 . 11 12 13 2 Heavy 1 | . . . . . . . . . . . . . . . . . . . 1 . . . . . Cetus Guard 1 | . . . . . . . . . . . . . . . . . 1 . . . . . . . Hotshot 1 | . . . . . . . . . . . . . . . . . . . . . . . . 1 Striker 7 | . . . . . . . . . . . . . . . . . . . . 3 2 . . 2 Executioner 2 | . . . . . . . . . . . . . . . . . . . . . . . . 2 Alpha 7 1 | . . . . . . . . . . . . . . . . . . . . . 1 . . . Artisan 3 | . . . 3 . . . . . . . . . . . . . . . . . . . . . Subdweller 15 | . . . 15 . . . . . . . . . . . . . . . . . . . . . Scrapoid 1 | . . . . . . . . . . . . . . . 1 . . . . . . . . . Wasp 1 | . . . . . . . . . 1 . . . . . . . . . . . . . . . Savage 4 | . . . . . . . 4 . . . . . . . . . . . . . . . . . Butcher 1 | . . . . . . . 1 . . . . . . . . . . . . . . . . . Mutant 1 | . . . . . . . 1 . . . . . . . . . . . . . . . . . Best Kill Streak 14 | 4 5 2 4 1 . 1 5 . . 14 5 1 . . 5 5 2 5 8 7 5 5 6 3 Combat Bots Only 13 | . 5 2 4 . . 1 5 . . 13 5 1 . . 3 5 1 . 2 7 3 5 6 3 Max Kills in Single Turn 6 | 1 2 1 2 1 . 1 2 . 1 5 1 1 . . 2 2 2 1 6 2 1 2 1 1 Gunslinging 1 | . 1 . . . . . . . . . . . . . 1 . . . . 1 . . . . Exploded 4 | . . . 2 . . . 2 . . 4 . . . . 1 . . . . 2 . . . . Melee . | . . . . . . . . . . . . . . . . . . . . . . . . . Uniques/NPCs Destroyed 1 | . . . . . . . . . . . . . . . . . 1 . . . . . . . A7 (-4/Cetus) Combat | -11 -10 -10 -10 -9 -9 -6 -6 -6 -5 -5 -5 -5 -5 -4 -4 -4 -4 -4 -4 -3 -3 -2 -2 -2 -------- Run | Yrd Mat Min Sub Rec Scr Fac Low Zio Pro Fac Upp Upp Zhi Pro Fac Ext Cet Arc Hub Res Tes Res Qua Frg Hostile Shots Fired 1101 | . 76 1 74 . . 33 1 . . 55 37 4 . . 68 93 35 . 60 69 69 169 120 137 Missed 304 | . 17 . 29 . . 16 . . . 20 5 . . . 17 25 9 . 18 13 15 56 34 30 Deflected 4 | . . . . . . . . . . . . . . . . . . . . . . . 3 1 Hits 797 | . 59 1 45 . . 17 1 . . 35 32 4 . . 51 68 26 . 42 56 54 113 86 107 Melee 36 | . . . . . . 3 1 . . . . . . . . . . . . 3 . . . 29 Projectile 761 | . 59 1 45 . . 14 . . . 35 32 4 . . 51 68 26 . 42 53 54 113 86 78 AOE 2 | . . . . . . 1 . . . . . . . . . . . . . 1 . . . . Critical Strikes 63 | . . . 3 . . 1 . . . 4 1 1 . . 3 7 3 . 1 3 9 9 4 14 Part Disruptions 2 | . . . . . . . . . . . . . . . . . . . . . . 1 1 . Damage Taken 15319 | . 599 13 663 . . 258 32 . . 633 616 86 . . 1069 1388 635 . 766 932 704 1541 1113 4271 Core 1642 | . 84 . 103 . . 15 . . . 9 18 23 . . 25 90 97 . 45 35 35 68 51 944 Absorbed by Shields 4234 | . 6 5 214 . . . . . . 48 . . . . 15 113 94 . 238 401 658 1067 793 582 Reduced by Siege Mode 114 | . . . . . . . . . . . 5 . . . 43 6 . . . 46 14 . . . Regen/Repaired (Parts) 731 | . 60 . . . . 2 . . . 6 . . . . 3 184 8 . 22 119 . 151 105 71 Core Remaining (%) 81 | 100 . . . . 25 . . . 98 . . . . 95 . . . . 77 . 94 . . . Volleys Fired 1153 | 12 80 4 72 1 2 26 10 4 8 40 34 24 3 8 44 97 64 71 40 57 107 158 110 77 Largest 3 | 2 2 2 2 2 1 2 2 1 2 2 2 2 1 1 2 3 3 2 3 3 3 3 3 3 Hottest 300 | 70 130 66 100 63 5 160 160 5 160 200 200 200 7 100 200 280 232 160 280 300 280 294 300 300 Shots Fired 1978 | 24 158 8 117 2 2 34 13 4 10 60 48 27 3 8 71 201 79 73 73 107 215 312 214 115 Gun 1751 | 24 142 . 10 1 . 10 7 . 10 52 48 27 . 8 65 200 78 72 72 102 204 310 205 104 Cannon 148 | . 13 8 96 1 . 20 . . . . . . . . . . . . . . . . . 10 Launcher 27 | . . . 6 . . . 6 . . 7 . . . . 5 . . . . 3 . . . . Special 52 | . 3 . 5 . 2 4 . 4 . 1 . . 3 . 1 1 1 1 1 2 11 2 9 1 Kinetic 344 | 12 90 8 112 2 . 19 . . . . . . . . 8 14 57 3 . 4 3 12 . . Thermal 1455 | 12 16 . 5 . . 11 7 . 10 52 48 27 . 8 57 186 21 69 72 98 198 249 205 104 Explosive 18 | . . . . . . . 6 . . 7 . . . . 5 . . . . . . . . . Electromagnetic 117 | . 52 . . . . . . . . . . . . . . . . . . 3 3 49 . 10 Robot Hit Streak 47 | 13 13 4 13 1 1 4 12 1 1 8 12 13 14 . 16 23 16 30 9 12 47 30 15 17 Robot Miss Streak 8 | 3 8 2 3 1 1 5 . 3 3 4 3 1 . . 2 2 3 3 4 2 2 3 3 8 Penetration Max 2 | . . . . . . . . . . . . . . . 1 1 1 . . . . 1 . 2 Secondary Targets 14 | . 2 . . . . . . . . . . . . . 2 1 . . 1 2 . 5 1 . Max Gunslinging Chain 1 | . 1 . . . . . . . . . . . . . 1 1 . . 1 1 . 1 1 . Shots Hit Robots 1260 | 18 97 5 74 1 1 13 11 1 2 32 23 17 3 . 52 138 60 48 43 68 164 204 126 59 Core Hits 530 | 7 50 3 29 1 . 3 16 . 1 29 10 6 . . 41 61 18 17 24 37 37 75 45 20 Critical Kills 5 | . 1 . . . . . . . . . . . . . . 1 . . . . . . . 3 Critical Parts Destroyed 17 | . 1 . . . . . . . . . . . . . 2 1 3 1 . . . 1 . 8 Critical Strikes 167 | 1 2 . 2 . . . . . 1 8 4 1 . . 8 24 7 6 13 9 15 20 25 21 Burn 138 | 1 . . . . . . . . 1 8 4 1 . . 6 22 2 5 13 9 15 19 25 7 Destroy 27 | . 2 . . . . . . . . . . . . . 2 2 5 1 . . . 1 . 14 Blast 2 | . . . 2 . . . . . . . . . . . . . . . . . . . . . Melee Attacks 14 | . . . . . . 7 6 1 . . . . . . . . . . . . . . . . Impact . | . . . . . . . . . . . . . . . . . . . . . . . . . Slashing 14 | . . . . . . 7 6 1 . . . . . . . . . . . . . . . . Piercing . | . . . . . . . . . . . . . . . . . . . . . . . . . Sneak Attacks 2 | . . . . . . 2 . . . . . . . . . . . . . . . . . . Combat Hostiles . | . . . . . . . . . . . . . . . . . . . . . . . . . Follow-up Attacks . | . . . . . . . . . . . . . . . . . . . . . . . . . Damage Inflicted 45700 | 193 1298 135 2186 17 . 316 1078 . 117 2301 711 476 . . 2213 3896 1711 1372 2045 2416 5474 8400 4443 4902 Guns 35132 | 193 1104 . 77 17 . 144 142 . 117 907 711 476 . . 1393 3896 1711 1372 1252 2122 5194 8203 4392 1709 Cannons 4926 | . 122 104 1465 . . 55 . . . . . . . . . . . . . . . . . 3180 Explosions 4933 | . . . 644 . . . 936 . . 1368 . . . . 816 . . . 775 294 100 . . . Melee 117 | . . . . . . 117 . . . . . . . . . . . . . . . . . . Ramming 592 | . 72 31 . . . . . . . 26 . . . . 4 . . . 18 . 180 197 51 13 Kinetic 5293 | 69 567 104 2186 17 . 55 . . . . . . . . 236 367 1240 96 . 80 22 254 . . Thermal 32079 | 124 76 . . . . 144 142 . 117 907 711 476 . . 1157 3529 471 1276 1252 2042 5088 5626 4392 4549 Explosive 3120 | . . . . . . . 936 . . 1368 . . . . 816 . . . . . . . . . Electromagnetic 4499 | . 583 . . . . . . . . . . . . . . . . . 775 294 184 2323 . 340 Impact . | . . . . . . . . . . . . . . . . . . . . . . . . . Slashing 117 | . . . . . . 117 . . . . . . . . . . . . . . . . . . Piercing . | . . . . . . . . . . . . . . . . . . . . . . . . . Highest Corruption 10 | . . . . . . 1 1 1 . 4 4 . . . 6 6 6 6 4 . 10 . . . Average Corruption 4 | . . . . . . 1 1 1 . 2 3 . . . 4 6 6 5 3 . 5 . . . Corruption Purged 11 | . . . . . . 1 . . . . 4 . . . . . . 6 . . . . . . Corruption Blocked 13 | . . . . . . . . . . . . . . . . . . . . 1 2 10 . . Effects 115 | . . . . . . 5 4 . . 6 5 . . . 3 51 15 8 1 . 17 . . . Message Errors 29 | . . . . . . 2 1 . . 1 3 . . . 1 13 3 2 1 . 2 . . . Matter Fused 26 | . . . . . . 2 1 . . . . . . . 2 9 3 3 . . 6 . . . Heat Flow Errors 16 | . . . . . . 1 1 . . 2 . . . . . 4 3 2 . . 3 . . . Energy Discharges 11 | . . . . . . . . . . . 1 . . . . 8 1 . . . 1 . . . Parts Rejected 3 | . . . . . . . . . . . . . . . . 2 1 . . . . . . . Parts Fused 1 | . . . . . . . . . . . . . . . . . . 1 . . . . . . Data Loss (minor) 18 | . . . . . . . 1 . . 3 1 . . . . 8 1 . . . 4 . . . Data Loss (major) 6 | . . . . . . . . . . . . . . . . 5 1 . . . . . . . Misfires 3 | . . . . . . . . . . . . . . . . 1 2 . . . . . . . Alerts 1 | . . . . . . . . . . . . . . . . . . . . . 1 . . . Weapon Failures 1 | . . . . . . . . . . . . . . . . 1 . . . . . . . . Overload Shots . | . . . . . . . . . . . . . . . . . . . . . . . . . Overflow Damage 1358 | . 1 . 9 . . 27 22 . . 48 . . . . 1 . . . 65 . 34 60 1 1090 Projectiles 1090 | . . . . . . . . . . . . . . . . . . . . . . . . 1090 Explosions 148 | . . . 9 . . . 22 . . 45 . . . . 1 . . . 65 . 6 . . . Melee 120 | . 1 . . . . 27 . . . 3 . . . . . . . . . . 28 60 1 . Knockbacks 13 | . 1 1 5 . . . . . . . . . . . . . . . . . 2 2 2 . Impact 7 | . 1 . . . . . . . . . . . . . . . . . . . 2 2 2 . Kinetic 6 | . . 1 5 . . . . . . . . . . . . . . . . . . . . . Secondary . | . . . . . . . . . . . . . . . . . . . . . . . . . Self-Inflicted Damage 293 | . . . . . . . . . . 63 . . . . . . . . 107 63 60 . . . Shots 8 | . . . . . . . . . . 1 . . . . . . . . 1 5 1 . . . Rammed 24 | . 16 4 . . . . . . . 2 . . . . 1 . . . 1 . . . . . Targets Rammed 39 | . 17 4 . . . . . . . 2 . . . . 1 . . . 1 . 4 6 3 1 Kicked 15 | . 1 . . . . . . . . . . . . . . . . . . . 4 6 3 1 Crushed . | . . . . . . . . . . . . . . . . . . . . . . . . . Highest Temperature 549 | 90 165 18 . . . 320 256 . 194 240 196 200 . 220 198 344 352 296 348 356 549 312 244 219 Average Temperature 89 | 32 45 6 . . . 57 74 . 80 95 89 92 . 79 84 111 112 104 104 108 116 94 70 34 Received Heat Transfer 1482 | . 245 6 131 . . 24 . . . 27 267 18 . . 153 261 76 . 55 12 9 146 20 32 Effects 13 | . . . . . . 2 . . . 1 . . . . . . . 1 . 2 2 2 3 . Shutdowns 2 | . . . . . . . . . . . . . . . . . . . . 1 1 . . . Energy Bleed 3 | . . . . . . 2 . . . . . . . . . . . 1 . . . . . . Interference 7 | . . . . . . . . . . 1 . . . . . . . . . 1 . 2 3 . Damage (minor) 1 | . . . . . . . . . . . . . . . . . . . . . 1 . . . Siege Activations 25 | . . . . . . . . . . 2 2 . . . 5 4 1 . 1 5 5 . . . Total Turns 327 | . . . . . . . . . . 13 23 . . . 52 60 8 . 8 60 103 . . . Longest Duration 44 | . . . . . . . . . . 12 22 . . . 19 27 8 . 8 28 44 . . . Martial Activations . | . . . . . . . . . . . . . . . . . . . . . . . . . Shielding Activations 6 | . . . . . . . . . . . . . . . . . . . . . . . 4 2 Total Turns 53 | . . . . . . . . . . . . . . . . . . . . . . . 33 20 Longest Duration 11 | . . . . . . . . . . . . . . . . . . . . . . . 11 11 Robots Disrupted . | . . . . . . . . . . . . . . . . . . . . . . . . . Combat Hostiles . | . . . . . . . . . . . . . . . . . . . . . . . . . Robots Corrupted 14 | . . . . . . . . . . 1 . . . . . . . . . . 3 7 1 2 Combat Hostiles 6 | . . . . . . . . . . . . . . . . . . . . . . 4 . 2 Parts Fried 45 | . 2 . . . . . . . . 1 . . . . . . . . 3 1 6 27 3 2 Impact Corruptions 8 | . 1 . . . . . . . . 1 . . . . . . . . . . 2 3 1 . Robots Melted 44 | . . . . . . . . . . 2 1 1 . . 2 9 1 1 4 3 11 6 3 . Combat Hostiles 41 | . . . . . . . . . . 2 1 1 . . 2 9 1 . 4 3 9 6 3 . Parts Melted 223 | 1 . 1 . . . 1 3 . 2 6 6 5 . . 11 33 2 3 12 7 52 45 32 1 Heat Transferred 59161 | 444 222 . . . . 250 300 . 400 2350 1600 950 . . 2711 8875 950 2800 3604 4000 9000 9709 8437 2559 Parts Sabotaged . | . . . . . . . . . . . . . . . . . . . . . . . . . Parts Stolen . | . . . . . . . . . . . . . . . . . . . . . . . . . Parts Stripped . | . . . . . . . . . . . . . . . . . . . . . . . . . Power Chain Reactions . | . . . . . . . . . . . . . . . . . . . . . . . . . Alert | -11 -10 -10 -10 -9 -9 -6 -6 -6 -5 -5 -5 -5 -5 -4 -4 -4 -4 -4 -4 -3 -3 -2 -2 -2 ------- Run | Yrd Mat Min Sub Rec Scr Fac Low Zio Pro Fac Upp Upp Zhi Pro Fac Ext Cet Arc Hub Res Tes Res Qua Frg Maximum Alert Level 4 | . 1 . . . . 1 . . . 3 . . . . 1 2 2 1 4 2 2 3 2 2 Low Security (%) 32 | 100 91 100 . 100 . 63 . . . 44 . . . . 27 49 4 13 5 . . . . 5 Level 1 35 | . 8 . . . . 36 . . . 25 . . . . 72 35 92 86 36 4 91 11 41 44 Level 2 29 | . . . . . . . . . . 28 . . . . . 15 3 . 43 95 7 65 58 49 Level 3 2 | . . . . . . . . . . 2 . . . . . . . . 7 . . 23 . . Level 4 . | . . . . . . . . . . . . . . . . . . . 7 . . . . . Level 5 . | . . . . . . . . . . . . . . . . . . . . . . . . . High Security . | . . . . . . . . . . . . . . . . . . . . . . . . . Max Security . | . . . . . . . . . . . . . . . . . . . . . . . . . Peak Influence 1197 | 10 243 34 . 9 . 300 . . . 928 . . . . 317 584 415 293 1197 626 483 854 644 502 Initial 624 | . . 34 . . . . . . . 150 . . . . . 149 323 74 81 624 326 265 392 344 Average 309 | 2 133 3 . . . 120 . . . 304 . . . . 194 245 290 239 527 523 314 573 450 378 Influence Increases 11442 | 25 624 61 144 17 . 540 . . 130 1538 140 20 . . 737 1435 322 339 1474 510 680 1173 761 772 Destroy 0b10 Robot/C 5180 | . 380 40 120 . . 280 . . 80 680 120 20 . . 360 740 160 80 360 320 320 520 360 240 Destroy 0b10 Robot/NC 585 | 25 50 5 . 5 . 15 . . 10 20 . . . . 15 70 10 40 50 5 60 105 55 45 Destroy Leader 928 | . 90 10 . . . 74 . . 10 112 20 . . . 72 106 . . 76 62 44 140 64 48 Allied During Kill 1303 | . . 6 9 . . 91 . . 30 91 . . . . 140 325 110 120 311 . . . . 70 Successful Hack 385 | . 26 . . 12 . 36 . . . 12 . . . . 12 60 12 . 38 24 5 123 6 19 Select Force Hacks 60 | . 60 . . . . . . . . . . . . . . . . . . . . . . . Disable Machine 1005 | . . . . . . 30 . . . 150 . . . . 45 60 . 75 135 30 180 45 135 120 Anti-Garrison Action 150 | . . . . . . . . . . . . . . . . . . . 150 . . . . . Destroy Structure 1456 | . 3 . . . . 14 . . . 308 . . . . 78 44 30 24 354 54 56 165 126 200 Advance Influence 150 | . . . . . . . . . . 150 . . . . . . . . . . . . . . Partial Spotted 60 | . . . . . . . . . . 15 . . . . . . . . . 15 15 15 . . Lose Combat Pursuer 180 | . 15 . 15 . . . . . . . . . . . 15 30 . . . . . 60 15 30 Influence Decreases 11032 | 25 534 151 144 17 . 361 179 . 130 616 704 363 15 . 431 1163 713 293 518 1118 789 947 846 975 Entered New Map 2828 | . . 56 . . . . 67 . . . 342 69 15 . . 157 255 113 152 565 255 207 306 269 Time Decay 6626 | 25 524 75 124 17 . 251 112 . 130 446 362 294 . . 331 568 318 180 286 553 534 580 530 386 Lost Part 180 | . 10 . . . . . . . . 10 . . . . 10 10 . . . . . . 10 130 Lost Ally 850 | . . 20 20 . . 110 . . . 160 . . . . 90 180 140 . 80 . . 10 . 40 Purge Threat 548 | . . . . . . . . . . . . . . . . 248 . . . . . 150 . 150 Squads Dispatched 78 | . 6 . . . . 10 . . . 12 . . . . 7 4 . . 8 7 6 8 6 4 Investigation 25 | . 3 . . . . 4 . . . 4 . . . . 4 3 . . 1 3 . 2 . 1 Extermination 23 | . . . . . . 2 . . . 3 . . . . 2 . . . 1 . 4 4 5 2 Reinforcement 24 | . 3 . . . . 4 . . . 4 . . . . 1 1 . . 4 4 1 . 1 1 Assault 6 | . . . . . . . . . . 1 . . . . . . . . 2 . 1 2 . . Garrison . | . . . . . . . . . . . . . . . . . . . . . . . . . Intercept . | . . . . . . . . . . . . . . . . . . . . . . . . . Searches Triggered . | . . . . . . . . . . . . . . . . . . . . . . . . . Construction Impeded 2 | . . . . . . . . . . 1 . . . . . . . . 1 . . . . . Haulers Reinforced 4 | . . . . . . 1 . . . . . . . . 1 . . . 1 1 . . . . Active Scanning Responses . | . . . . . . . . . . . . . . . . . . . . . . . . . Cargo Convoy Interrupts . | . . . . . . . . . . . . . . . . . . . . . . . . . Stealth | -11 -10 -10 -10 -9 -9 -6 -6 -6 -5 -5 -5 -5 -5 -4 -4 -4 -4 -4 -4 -3 -3 -2 -2 -2 --------- Run | Yrd Mat Min Sub Rec Scr Fac Low Zio Pro Fac Upp Upp Zhi Pro Fac Ext Cet Arc Hub Res Tes Res Qua Frg Distress Signals 21 | . 2 . . . . 2 . . . . . . . . . 1 2 . 3 4 . 2 . 5 Communications Jammed 66 | . . . . . . . . . . . . . . . 5 8 . . 8 . . 28 3 14 Distress Signals 58 | . . . . . . . . . . . . . . . 2 8 . . 5 . . 26 3 14 Times Spotted 374 | . 33 2 21 . . 17 6 . 6 25 6 1 . . 17 44 10 22 25 19 25 44 26 25 Peak Tracking Total 13 | . 5 2 6 . . 4 6 . 4 13 5 1 . . 5 4 5 2 9 5 2 6 3 5 Tactical Retreats 10 | . 1 . 1 . . . . . . . . . . . 1 1 . . . . . 3 1 2 Traps | -11 -10 -10 -10 -9 -9 -6 -6 -6 -5 -5 -5 -5 -5 -4 -4 -4 -4 -4 -4 -3 -3 -2 -2 -2 ------- Run | Yrd Mat Min Sub Rec Scr Fac Low Zio Pro Fac Upp Upp Zhi Pro Fac Ext Cet Arc Hub Res Tes Res Qua Frg Traps Triggered 14 | . . . 1 . . . . . . 1 . . . . . 4 . . 2 1 1 2 2 . Indirectly 1 | . . . . . . . . . . . . . . . . . . . 1 . . . . . Trap Hack Attempts . | . . . . . . . . . . . . . . . . . . . . . . . . . Triggered . | . . . . . . . . . . . . . . . . . . . . . . . . . Disarmed . | . . . . . . . . . . . . . . . . . . . . . . . . . Reprogrammed . | . . . . . . . . . . . . . . . . . . . . . . . . . Reused . | . . . . . . . . . . . . . . . . . . . . . . . . . Traps Extracted . | . . . . . . . . . . . . . . . . . . . . . . . . . Installed . | . . . . . . . . . . . . . . . . . . . . . . . . . Triggered . | . . . . . . . . . . . . . . . . . . . . . . . . . Machines | -11 -10 -10 -10 -9 -9 -6 -6 -6 -5 -5 -5 -5 -5 -4 -4 -4 -4 -4 -4 -3 -3 -2 -2 -2 ---------- Run | Yrd Mat Min Sub Rec Scr Fac Low Zio Pro Fac Upp Upp Zhi Pro Fac Ext Cet Arc Hub Res Tes Res Qua Frg Machines Disabled 75 | . 1 . 3 . . 2 . . . 10 . . . . 3 6 . 5 10 2 12 3 9 9 Max in Single Turn 8 | . 1 . 1 . . 1 . . . 5 . . . . 1 1 . 1 8 1 2 1 1 1 Garrison Access 2 | . . . . . . . . . . . . . . . 1 . . . 1 . . . . . Network Hub 1 | . . . . . . . . . . . . . . . . . . . 1 . . . . . Machines Repaired . | . . . . . . . . . . . . . . . . . . . . . . . . . Machines Dismantled . | . . . . . . . . . . . . . . . . . . . . . . . . . Machines Sabotaged . | . . . . . . . . . . . . . . . . . . . . . . . . . Overloaded Fab Kills . | . . . . . . . . . . . . . . . . . . . . . . . . . Hacking | -11 -10 -10 -10 -9 -9 -6 -6 -6 -5 -5 -5 -5 -5 -4 -4 -4 -4 -4 -4 -3 -3 -2 -2 -2 --------- Run | Yrd Mat Min Sub Rec Scr Fac Low Zio Pro Fac Upp Upp Zhi Pro Fac Ext Cet Arc Hub Res Tes Res Qua Frg Machines Accessed 102 | . 7 . 2 2 2 9 . . . 7 . . 3 . 9 18 2 . 3 6 7 12 8 5 Terminals 60 | . 4 . . 2 . 5 . . . 2 . . . . 3 16 2 . 3 2 6 7 6 2 Fabricators 3 | . . . . . . . . . . 1 . . . . . . . . . 1 . 1 . . Repair Stations 4 | . 1 . . . . . . . . . . . . . 1 . . . . . . 1 . 1 Recycling Units 20 | . 2 . . . . 4 . . . 4 . . . . 4 2 . . . 1 . 2 . 1 Scanalyzers 3 | . . . . . . . . . . . . . . . . . . . . . 1 . 1 1 Garrison Access 5 | . . . . . . . . . . . . . . . 1 . . . . 2 . 1 1 . Total Hacks 291 | . 24 . 6 11 25 28 . . . 18 . . 13 . 15 49 4 . 8 12 12 30 17 19 Successful 152 | . 14 . 6 6 25 15 . . . 9 . . 13 . 7 27 2 . 3 5 1 10 4 5 Failed 138 | . 10 . . 5 . 12 . . . 9 . . . . 8 22 2 . 5 7 11 20 13 14 Catastrophic 29 | . . . . . . 4 . . . 2 . . . . . 2 1 . 1 3 3 7 4 2 Database Lockouts 1 | . . . . . . 1 . . . . . . . . . . . . . . . . . . Manual 162 | . 16 . . 6 . 26 . . . 14 . . . . 8 33 1 . 5 7 10 19 5 12 Terminals 176 | . 20 . . 11 . 20 . . . 6 . . . . 6 45 4 . 8 6 9 16 13 12 Fabricators 13 | . . . . . . . . . . 8 . . . . . . . . . 3 . 2 . . Repair Stations 6 | . 2 . . . . . . . . . . . . . 1 . . . . . . 2 . 1 Recycling Units 36 | . 2 . . . . 8 . . . 4 . . . . 6 4 . . . 1 . 7 . 4 Scanalyzers 7 | . . . . . . . . . . . . . . . . . . . . . 3 . 2 2 Garrison Access 9 | . . . . . . . . . . . . . . . 2 . . . . 2 . 3 2 . Terminal Hacks 85 | . 6 . 6 1 25 4 . . . . . . 13 . 1 14 2 . 1 1 . 4 2 5 Record 28 | . . . 5 . 19 . . . . . . . 1 . . . 2 . . . . . 1 . Part Schematic 6 | . 1 . . . . 1 . . . . . . 4 . . . . . . . . . . . Robot Schematic 1 | . . . . 1 . . . . . . . . . . . . . . . . . . . . Robot Analysis 13 | . 3 . . . 6 . . . . . . . 4 . . . . . . . . . . . Prototype ID Bank 7 | . . . . . . 2 . . . . . . 4 . . 1 . . . . . . . . Open Door 9 | . . . . . . . . . . . . . . . . 8 . . . . . 1 . . Branch Access Points 1 | . . . . . . . . . . . . . . . . . . . . . . 1 . . Emergency Access Points 1 | . . . . . . . . . . . . . . . . . . . . . . . . 1 Terminal Index 4 | . . . . . . . . . . . . . . . . 1 . . 1 . . 1 . 1 Recycling Unit Index 1 | . . . . . . 1 . . . . . . . . . . . . . . . . . . Alert Level 4 | . . . . . . . . . . . . . . . 1 2 . . . 1 . . . . Unreport Threat 4 | . . . . . . . . . . . . . . . . 2 . . . . . 1 . 1 Locate Traps 2 | . 2 . . . . . . . . . . . . . . . . . . . . . . . Maintenance Status 1 | . . . . . . . . . . . . . . . . . . . . . . . . 1 Zone Layout 2 | . . . . . . . . . . . . . . . . . . . . . . . 1 1 Proto ID Catalog 1 | . . . 1 . . . . . . . . . . . . . . . . . . . . . Fabricator Hacks 4 | . . . . . . . . . . 3 . . . . . . . . . 1 . . . . Network Status 2 | . . . . . . . . . . 1 . . . . . . . . . 1 . . . . Load Schematic 1 | . . . . . . . . . . 1 . . . . . . . . . . . . . . Build 1 | . . . . . . . . . . 1 . . . . . . . . . . . . . . Repair Station Hacks 2 | . 2 . . . . . . . . . . . . . . . . . . . . . . . Scan Component 1 | . 1 . . . . . . . . . . . . . . . . . . . . . . . Repair 1 | . 1 . . . . . . . . . . . . . . . . . . . . . . . Recycling Unit Hacks . | . . . . . . . . . . . . . . . . . . . . . . . . . Scanalyzer . | . . . . . . . . . . . . . . . . . . . . . . . . . Garrison Access Hacks 2 | . . . . . . . . . . . . . . . 1 . . . . . . 1 . . Unlock Access 1 | . . . . . . . . . . . . . . . . . . . . . . 1 . . Seal Access 1 | . . . . . . . . . . . . . . . 1 . . . . . . . . . Unauthorized Hacks 59 | . 6 . . 5 . 11 . . . 6 . . . . 5 13 . . 2 3 1 5 2 . Terminals 35 | . 4 . . 5 . 8 . . . . . . . . . 12 . . 2 1 . 1 2 . Track 5 | . . . . 1 . 3 . . . . . . . . . 1 . . . . . . . . Assimilate 2 | . . . . . . 1 . . . . . . . . . 1 . . . . . . . . Botnet 13 | . 2 . . 2 . 2 . . . . . . . . . 3 . . 1 1 . 1 1 . Operators 4 | . 1 . . . . 1 . . . . . . . . . 1 . . . . . . 1 . Skim 11 | . 1 . . 2 . 1 . . . . . . . . . 6 . . 1 . . . . . Fabricators 3 | . . . . . . . . . . 2 . . . . . . . . . 1 . . . . Prioritize 1 | . . . . . . . . . . 1 . . . . . . . . . . . . . . Haulers 2 | . . . . . . . . . . 1 . . . . . . . . . 1 . . . . Repair Stations 1 | . . . . . . . . . . . . . . . 1 . . . . . . . . . Mechanics 1 | . . . . . . . . . . . . . . . 1 . . . . . . . . . Recycling Units 17 | . 2 . . . . 3 . . . 4 . . . . 4 1 . . . 1 . 2 . . Tunnel 2 | . 2 . . . . . . . . . . . . . . . . . . . . . . . Fedlink 11 | . . . . . . 2 . . . 3 . . . . 3 . . . . 1 . 2 . . Scrapoids 4 | . . . . . . 1 . . . 1 . . . . 1 1 . . . . . . . . Scanalyzers 1 | . . . . . . . . . . . . . . . . . . . . . 1 . . . Researchers 1 | . . . . . . . . . . . . . . . . . . . . . 1 . . . Garrison Access 2 | . . . . . . . . . . . . . . . . . . . . . . 2 . . Broadcast 1 | . . . . . . . . . . . . . . . . . . . . . . 1 . . Watchers 1 | . . . . . . . . . . . . . . . . . . . . . . 1 . . Data Cores Recovered 3 | . . . . . . . . . . . . . . . . . . . . . . . 2 1 Used 1 | . . . . . . . . . . . . . . . . . . . . . . . 1 . Hacking Detections 70 | . 5 . . 2 . 7 . . . 3 . . . . 4 10 2 . 3 5 6 11 7 5 Full Trace Events 5 | . . . . . . 1 . . . . . . . . . 2 . . . 1 . . . 1 Feedback Events 1 | . . . . . . 1 . . . . . . . . . . . . . . . . . . Corruption 1 | . . . . . . 1 . . . . . . . . . . . . . . . . . . Feedback Blocked . | . . . . . . . . . . . . . . . . . . . . . . . . . Robot Schematics Acquired 5 | . . . . 1 . . . 4 . . . . . . . . . . . . . . . . Robots Built 2 | . . . . . . . . . . 2 . . . . . . . . . . . . . . Authchips 1 | . . . . . . . . . . 1 . . . . . . . . . . . . . . Time 204 | . . . . . . . . . . 204 . . . . . . . . . . . . . . Total Robot Build Rating 16 | . . . . . . . . . . 16 . . . . . . . . . . . . . . Part Schematics Acquired 24 | . 1 . . . . 1 . 13 . . . . 4 . . . . . . . 3 . 2 . Parts Built . | . . . . . . . . . . . . . . . . . . . . . . . . . Authchips . | . . . . . . . . . . . . . . . . . . . . . . . . . Time . | . . . . . . . . . . . . . . . . . . . . . . . . . Total Part Build Rating . | . . . . . . . . . . . . . . . . . . . . . . . . . Parts Repaired 1 | . 1 . . . . . . . . . . . . . . . . . . . . . . . Time 26 | . 26 . . . . . . . . . . . . . . . . . . . . . . . Parts Recycled . | . . . . . . . . . . . . . . . . . . . . . . . . . Recycled Matter . | . . . . . . . . . . . . . . . . . . . . . . . . . Retrieved Matter . | . . . . . . . . . . . . . . . . . . . . . . . . . Retrieved Components . | . . . . . . . . . . . . . . . . . . . . . . . . . Parts Scanalyzed . | . . . . . . . . . . . . . . . . . . . . . . . . . Part Schematics Acquired . | . . . . . . . . . . . . . . . . . . . . . . . . . Parts Damaged . | . . . . . . . . . . . . . . . . . . . . . . . . . Bothacking | -11 -10 -10 -10 -9 -9 -6 -6 -6 -5 -5 -5 -5 -5 -4 -4 -4 -4 -4 -4 -3 -3 -2 -2 -2 ------------ Run | Yrd Mat Min Sub Rec Scr Fac Low Zio Pro Fac Upp Upp Zhi Pro Fac Ext Cet Arc Hub Res Tes Res Qua Frg Used RIF Installer . | . . . . . . . . . . . . . . . . . . . . . . . . . Robots Hacked 23 | . . . . . 2 1 . 1 . . . . 3 . . 1 1 1 . 1 7 1 3 1 Non-combat 2 | . . . . . . 1 . . . . . . . . . . . . . . . 1 . . Combat 14 | . . . . . 2 . . 1 . . . . 3 . . 1 1 1 . 1 2 . 1 1 Robot Hacks Applied 18 | . . . . . 2 1 . 1 . . . . 3 . . 1 1 1 . 1 2 2 2 1 parse_system 14 | . . . . . 2 1 . 1 . . . . 3 . . 1 1 1 . 1 1 . 1 1 find_fabricator 1 | . . . . . . . . . . . . . . . . . . . . . . 1 . . find_dsf 1 | . . . . . . . . . . . . . . . . . . . . . . 1 . . find_scanalyzer 2 | . . . . . . . . . . . . . . . . . . . . . 1 . 1 . Manual 10 | . . . . . . . . . . . . . . . . . . . . . 7 . 3 . Relay Couplers Released 2 | . . . . . . . . . . . . . . . . . . . 2 . . . . . Machine Destruction 2 | . . . . . . . . . . . . . . . . . . . 2 . . . . . Fabnet Peak Effective % . | . . . . . . . . . . . . . . . . . . . . . . . . . Robots Rewired . | . . . . . . . . . . . . . . . . . . . . . . . . . Allies Hacked . | . . . . . . . . . . . . . . . . . . . . . . . . . Hacks Repelled . | . . . . . . . . . . . . . . . . . . . . . . . . . Allies | -11 -10 -10 -10 -9 -9 -6 -6 -6 -5 -5 -5 -5 -5 -4 -4 -4 -4 -4 -4 -3 -3 -2 -2 -2 -------- Run | Yrd Mat Min Sub Rec Scr Fac Low Zio Pro Fac Upp Upp Zhi Pro Fac Ext Cet Arc Hub Res Tes Res Qua Frg Total Allies 52 | . . 3 . . . 6 . 6 . 7 . . . . 5 18 5 . . . . . . 2 Largest Group 11 | . . 3 2 . . 5 . 6 6 8 . . . . 5 9 11 5 5 . . . . 2 Highest-Rated Group 827 | . . 40 24 . . 146 . 134 134 394 . . . . 238 467 827 480 473 . . . . 192 Highest-Rated Ally 159 | . . 16 16 . . 31 . 28 28 64 . . . . 50 159 159 96 96 . . . . 96 Total Orders 445 | . . . . . . 52 38 . 9 90 . . . 8 74 4 2 10 21 56 39 42 . . STAY 157 | . . . . . . 21 11 . 3 28 . . . 4 25 2 1 2 7 18 17 18 . . ROAM 3 | . . . . . . . . . . . . . . . . . . 2 1 . . . . . FOLLOW 33 | . . . . . . 12 3 . 1 2 . . . . 5 2 1 2 4 1 . . . . GUARD 6 | . . . . . . . . . . . . . . . . . . 4 2 . . . . . EXPLORE 62 | . . . . . . 3 . . 1 26 . . . . 20 . . . . 12 . . . . RETURN 184 | . . . . . . 16 24 . 4 34 . . . 4 24 . . . 7 25 22 24 . . Ally Attacks 649 | . . 9 16 . . 92 . . 41 74 . . . . 72 150 64 30 61 . . . . 40 Total Damage 15553 | . . 73 146 . . 1574 . . 265 2048 . . . . 1395 3101 1692 1112 2902 . . . . 1245 Kills 101 | . . . 3 . . 14 . . 6 18 . . . . 8 21 8 4 14 . . . . 5 Allies Corrupted . | . . . . . . . . . . . . . . . . . . . . . . . . . Allies Melted . | . . . . . . . . . . . . . . . . . . . . . . . . . Intel | -11 -10 -10 -10 -9 -9 -6 -6 -6 -5 -5 -5 -5 -5 -4 -4 -4 -4 -4 -4 -3 -3 -2 -2 -2 ------- Run | Yrd Mat Min Sub Rec Scr Fac Low Zio Pro Fac Upp Upp Zhi Pro Fac Ext Cet Arc Hub Res Tes Res Qua Frg Active Infowar (turns) 21428 | 31 730 . 291 . 535 1398 842 1886 673 829 776 626 267 1185 994 1515 710 365 577 1586 1503 1780 1499 830 Sensors 15896 | . . . . . . 1322 836 1886 668 470 771 620 254 1185 846 1232 . 2 451 1437 1186 1278 1143 309 A.S.S. 1 | . . . . . . . . . . 1 . . . . . . . . . . . . . . Terrain 1383 | . . . . . . . . . . . . . . . . . . . . . . . 593 790 Structural 1044 | . . . . . . . . . . . . . . . . . . . . . . 763 281 . Seismic 9773 | 31 730 . 291 . 535 1398 842 1886 672 815 658 624 267 957 67 . . . . . . . . . Cloaking 599 | . . . . . . . . . . . . . . . . . . . . . . 55 399 145 Jamming 10587 | . . . . . . . . . . 53 . . . . 994 1020 710 363 301 1575 1503 1780 1458 830 ECM 2 | . . . . . . . . . . . . . . . . . . . . . 2 . . . Robot Analysis Total 13 | . 3 . . . 6 . . . . . . . 4 . . . . . . . . . . . Derelict Logs Recovered 12 | . . 1 . . 5 . . . 1 . 1 2 . 2 . . . . . . . . . . Drone Launches 121 | . . . . . . 10 16 . 2 22 . . . 2 19 . . . 6 18 13 13 . . Drone Recoveries 118 | . . . . . . 10 16 . 2 22 . . . 2 17 . . . 6 18 13 12 . . Exploration | -11 -10 -10 -10 -9 -9 -6 -6 -6 -5 -5 -5 -5 -5 -4 -4 -4 -4 -4 -4 -3 -3 -2 -2 -2 ------------- Run | Yrd Mat Min Sub Rec Scr Fac Low Zio Pro Fac Upp Upp Zhi Pro Fac Ext Cet Arc Hub Res Tes Res Qua Frg Turns Passed 29904 | 109 1515 869 2801 435 3430 1398 885 1886 716 1102 832 654 267 1185 994 1820 710 365 638 1607 1503 1780 1499 904 Spaces Moved 16412 | 57 749 517 1434 201 2278 775 560 1186 455 581 399 341 157 561 528 1010 320 100 315 851 779 947 800 511 Core 18 | 18 . . . . . . . . . . . . . . . . . . . . . . . . Treads 4712 | . 595 517 973 135 150 480 . . . 404 399 341 157 538 . 2 21 . . . . . . . Legs 3326 | 39 154 . . . . . . 147 12 156 . . . . . . . . . . 560 947 800 511 Wheels 8356 | . . . 461 66 2128 295 560 1039 443 21 . . . 23 528 1008 299 100 315 851 219 . . . Hover . | . . . . . . . . . . . . . . . . . . . . . . . . . Flight . | . . . . . . . . . . . . . . . . . . . . . . . . . Fastest Speed 50 | 50 120 160 130 140 115 140 140 140 140 130 157 157 153 140 140 140 130 140 140 140 108 112 112 106 Average Speed 147 | 97 152 160 175 213 146 152 140 153 143 148 159 157 156 152 140 140 140 140 140 151 124 128 130 123 Slowest Speed 360 | 120 190 160 250 250 250 160 150 250 360 250 305 157 157 153 140 241 240 140 150 160 184 188 197 192 Overloaded Moves . | . . . . . . . . . . . . . . . . . . . . . . . . . Propulsion Burnouts . | . . . . . . . . . . . . . . . . . . . . . . . . . Robots Hopped . | . . . . . . . . . . . . . . . . . . . . . . . . . Potential Cave-ins 6 | . . . . . . . . . . . . . . . . . . . . . . 6 . . Cave-ins Triggered . | . . . . . . . . . . . . . . . . . . . . . . . . . Teleports 3 | . . . . . . . . . . . . . . . . . . . . . . . 2 1 Exploration Rate (%) 54 | 4 97 97 71 31 92 22 56 85 53 27 55 54 60 62 20 91 69 77 29 27 71 26 62 23 Regions Visited 24 Branch Regions 18 Pre-discovered Areas 12 | . 2 . . . 6 1 . 1 . . . . . . . 2 . . . . . . . . Known Exits Taken 16 | . . . . . . 1 1 1 1 1 1 . . 1 1 1 1 1 1 1 1 1 1 . Unknown Exits Taken 8 | 1 1 1 1 1 1 . . . . . . 1 1 . . . . . . . . . . . Scrap Searched 23 | . . 3 3 . 4 . 5 3 1 . 1 1 . 2 . . . . . . . . . . Spaces Dug 136 | . 3 . . . . 10 5 . . 20 7 3 . 3 3 5 . . 3 13 10 26 12 13 Terrain Destroyed 701 | . 3 . 54 . . 12 36 . . 103 14 5 . 5 26 16 47 10 163 27 27 61 42 50 Melee 8 | . . . . . . 3 5 . . . . . . . . . . . . . . . . . Projectile 335 | . 3 . . . . 9 . . . 7 14 5 . 5 12 16 47 10 8 27 19 61 42 50 AOE 358 | . . . 54 . . . 31 . . 96 . . . . 14 . . . 155 . 8 . . . Terrain Rammed . | . . . . . . . . . . . . . . . . . . . . . . . . . Walls Destroyed . | . . . . . . . . . . . . . . . . . . . . . . . . . Machines Disabled . | . . . . . . . . . . . . . . . . . . . . . . . . . Actions | -11 -10 -10 -10 -9 -9 -6 -6 -6 -5 -5 -5 -5 -5 -4 -4 -4 -4 -4 -4 -3 -3 -2 -2 -2 --------- Run | Yrd Mat Min Sub Rec Scr Fac Low Zio Pro Fac Upp Upp Zhi Pro Fac Ext Cet Arc Hub Res Tes Res Qua Frg Total 20883 | 87 970 551 1584 204 2379 944 646 1247 516 783 564 444 179 889 729 1318 545 287 465 1109 1218 1345 1169 711 Wait 1899 | 2 55 20 20 . 9 66 28 44 36 51 117 70 . 304 92 122 110 105 70 95 183 135 105 60 Move 16388 | 56 748 516 1433 200 2277 774 559 1185 454 580 398 340 156 560 527 1009 319 99 314 850 778 946 799 511 Hop . | . . . . . . . . . . . . . . . . . . . . . . . . . Pick Up 270 | 10 22 3 14 . 40 21 10 3 4 22 1 1 4 7 12 4 10 1 3 19 25 5 21 8 Fast Attach 103 | 3 5 . 4 . 2 7 2 2 . 9 1 2 4 . 1 6 9 2 . 6 13 8 15 2 Attach 88 | 4 1 . 2 . 3 6 6 1 4 10 1 1 3 2 5 2 3 . . 7 6 1 10 10 Detach 25 | . 1 . . . 2 . 1 . . 7 . . 2 . . . 1 . . 3 1 . 3 4 Swap 561 | . 18 1 25 3 4 21 9 2 4 34 10 4 1 2 38 47 11 5 35 53 65 75 66 28 Drop 321 | . 23 3 14 . 40 16 15 5 6 28 2 2 6 6 9 9 18 4 2 19 36 11 37 10 Fire 1153 | 12 80 4 72 1 2 26 10 4 8 40 34 24 3 8 44 97 64 71 40 57 107 158 110 77 Melee 14 | . . . . . . 7 6 1 . . . . . . . . . . . . . . . . Ram . | . . . . . . . . . . . . . . . . . . . . . . . . . Kick 15 | . 1 . . . . . . . . . . . . . . . . . . . 4 6 3 1 Crush 24 | . 16 4 . . . . . . . 2 . . . . 1 . . . 1 . . . . . Escape Stasis 22 | . . . . . . . . . . . . . . . . 22 . . . . . . . . Rewire . | . . . . . . . . . . . . . . . . . . . . . . . . . Trap . | . . . . . . . . . . . . . . . . . . . . . . . . . Miscellaneous . | . . . . . . . . . . . . . . . . . . . . . . . . . Route ------- -11/Scrapyard -10/Materials (discovered 6 exits: [*Mat x3] / [*Min x2] / *Sub) -10/Mines (discovered 4 exits: [*Mat x2] / [*Exi] / *Sub) -10/Subcaves (discovered 2 exits: [*Mat] / *Rec) -9/Recycling -9/Scraptown (discovered 2 exits: *Fac x2) -6/Factory (discovered 4 exits: *Fac x2 / *Low x2) -6/Lower Caves (discovered 2 exits: Low / *Zio) -6/Zion -5/Proximity Caves -5/Factory (discovered 3 exits: Fac / *Upp x2) -5/Upper Caves -5/Upper Caves (discovered 2 exits: Fac / *Zhi) -5/Zhirov -4/Proximity Caves -4/Factory (discovered 5 exits: Res / *Upp x2 / *Ext x2) -4/Extension (discovered 2 exits: *Res / *Cet) -4/Cetus (discovered 2 exits: *Res / *Arc) -4/Archives (discovered 2 exits: *Res / *Hub) -4/Hub_04(d) -3/Research (discovered 2 exits: Res / *Tes) -3/Testing -2/Research (discovered 4 exits: *Acc / *Qua x2 / Gar) -2/Quarantine (discovered 3 exits: *Acc / *Sec / *Frg) -2/Protoforge History --------- Turn | Location | Event 3 | -11/Scrapyard | Discovered new exit (range 16) 110 | -11/Scrapyard | Entered Materials 297 | -10/Materials | Discovered new exit (range 16) 566 | -10/Materials | Build established: Scavenger-Mutant 571 | -10/Materials | Discovered new exit (range 3) 875 | -10/Materials | Discovered new exit (range 10) 904 | -10/Materials | Discovered new exit (range 16) 1100 | -10/Materials | Discovered new exit (range 3) 1118 | -10/Materials | Build established: Mutant 1357 | -10/Materials | Discovered new exit (range 9) 1510 | -10/Materials | Derelicts attacked the area 1598 | -10/Materials | Repaired Lgt. Treads 1625 | -10/Materials | Entered Mines 1626 | -10/Mines | Assembled infested the area 1629 | -10/Mines | Met a Derelict bent on vengeance 1662 | -10/Mines | Met 8R-AWN 1696 | -10/Mines | Discovered new exit (range 4) 1720 | -10/Mines | Discovered new exit (range 5) 1767 | -10/Mines | Discovered new exit (range 14) 1927 | -10/Mines | Assisted by bots powering up and referring to "LRC-V3" 2058 | -10/Mines | Received a Rocket Launcher from a helpful Derelict 2140 | -10/Mines | Learned Materials trap positions 2188 | -10/Mines | Discovered new exit (range 10) 2195 | -10/Mines | Found a hidden stash of uninstalled traps 2494 | -10/Mines | Entered Subcaves 2494 | -10/Subcaves | Accompanied by 2 allies 2494 | -10/Subcaves | Discovered new exit (range 13) 2495 | -10/Subcaves | Approached by a straggling Scientist 2672 | -10/Subcaves | Visited Clippyterm 2676 | -10/Subcaves | Learned Factory stockpile data 2693 | -10/Subcaves | A swath of the cavern ceiling suddenly collapsed 3012 | -10/Subcaves | A swath of the cavern ceiling suddenly collapsed 3056 | -10/Subcaves | Shifting Twisted Machinery released Sub. Machine Gun 3058 | -10/Subcaves | Shifting Twisted Machinery released Sub. Beam Cannon 3061 | -10/Subcaves | Discovered new exit (range 11) 3567 | -10/Subcaves | Shifting Twisted Machinery released Sub. Shrapnel Launcher 3570 | -10/Subcaves | Shifting Twisted Machinery released Sub. Shrapnel Launcher 4044 | -10/Subcaves | Ambushed by angry Subdweller bent on revenge 4264 | -10/Subcaves | Core integrity fell below 50% 4868 | -10/Subcaves | Visited 4L-MR0's lab 4920 | -10/Subcaves | Found Cargo Legs 5022 | -10/Subcaves | Ambushed by Subdwellers from Twisted Machinery 5029 | -10/Subcaves | Ambushed by Subdwellers from Twisted Machinery 5295 | -10/Subcaves | Entered Recycling 5328 | -9/Recycling | Scanned before Scraplab entrance 5705 | -9/Recycling | Entered Scraplab 5725 | -9/Recycling | Discovered new exit (range 2) 5730 | -9/Recycling | Entered Scraptown 6273 | -9/Scraptown | Scanned Subdweller tech in exchange for log data 6276 | -9/Scraptown | Learned location of Quarantine (-2) 6278 | -9/Scraptown | Learned Factory emergency access door positions 6279 | -9/Scraptown | Learned Factory trap positions 6280 | -9/Scraptown | Learned Research trap positions 6282 | -9/Scraptown | Learned Research stockpile data 6306 | -9/Scraptown | Discovered new exit (range 7) 6413 | -9/Scraptown | Visited SPCMW 6465 | -9/Scraptown | Visited Fellowship of the Rings 6509 | -9/Scraptown | Visited TADAMA 6535 | -9/Scraptown | Visited Shadow of the Wyrm 6848 | -9/Scraptown | Visited The Evicted 6862 | -9/Scraptown | Visited Awakened 6890 | -9/Scraptown | Visited Spacefarers 7132 | -9/Scraptown | Visited UFD Registry 7132 | -9/Scraptown | Registered with UFD as "Phaseskull" 7186 | -9/Scraptown | Visited Research Penetration Think Tank 7220 | -9/Scraptown | Visited Supply Room 7244 | -9/Scraptown | Visited Scrapoid Pod Storage 7287 | -9/Scraptown | Delivered Scrap Shield to a Scientist 7410 | -9/Scraptown | Visited Sword Containment 7429 | -9/Scraptown | Visited Analyses Database 7460 | -9/Scraptown | Visited Infowarlord's Domain 7477 | -9/Scraptown | Visited Cartography Club 7497 | -9/Scraptown | Visited Chapter 10 7523 | -9/Scraptown | Visited Scrap Suit Storage 7577 | -9/Scraptown | Visited Junk Repository 7844 | -9/Scraptown | Found Surveybot 17 Chip 7985 | -9/Scraptown | Learned location of Upper Caves (-5) 7985 | -9/Scraptown | Learned location of Zion (-6) 7985 | -9/Scraptown | Learned 8 Materials zone layouts 7985 | -9/Scraptown | Learned 20 Factory zone layouts 7985 | -9/Scraptown | Learned 8 Research zone layouts 7985 | -9/Scraptown | Learned 4 Access zone layouts 7985 | -9/Scraptown | Learned 8 Upper Caves zone layouts 7985 | -9/Scraptown | Learned 16 Upper Caves zone layouts 7985 | -9/Scraptown | Learned 20 Upper Caves zone layouts 7985 | -9/Scraptown | Learned 24 Upper Caves zone layouts 7985 | -9/Scraptown | Learned 8 Proximity Caves zone layouts 7985 | -9/Scraptown | Learned 4 Hub_04(d) zone layouts 7985 | -9/Scraptown | Learned location of 1 exit from Lower Caves 7985 | -9/Scraptown | Learned location of 1 exit from Proximity Caves 8052 | -9/Scraptown | Found Deep Structural Scanner 8483 | -9/Scraptown | Found Scrap Suit 8634 | -9/Scraptown | Found Exp. Sensor Array 9077 | -9/Scraptown | Met Optimus 9077 | -9/Scraptown | Accepted into 0bPrime 9157 | -9/Scraptown | Discovered new exit (range 3) 9160 | -9/Scraptown | Entered Factory 9160 | -6/Factory | Evolved 8 slots: Power x1, Propulsion x2, Utility x5 9161 | -6/Factory | Identified exit to Lower Caves 9161 | -6/Factory | Identified exit to Factory 9162 | -6/Factory | Loaded intel: 107 trap records 9408 | -6/Factory | Discovered exit to Factory (range 16) 9716 | -6/Factory | Scrapoid reinforcements arrived 9930 | -6/Factory | Central database locked down 10018 | -6/Factory | Build established: Commander-Mutant 10085 | -6/Factory | Found Scrap Suit 10360 | -6/Factory | Build established: Scavenger-Scrapper 10451 | -6/Factory | Loaded intel: 8 recycling unit locations 10460 | -6/Factory | Learned location of Protoforge (-2) 10558 | -6/Factory | Entered Lower Caves 10559 | -6/Lower Caves | Identified exit to Lower Caves 10560 | -6/Lower Caves | UFD Scientist delivered a prototype 10565 | -6/Lower Caves | Found Prototype Protection 10699 | -6/Lower Caves | Build established: Scrapper 10723 | -6/Lower Caves | Identified Enh. Scrap Shield 10743 | -6/Lower Caves | Attacked by a faux Warlord 10865 | -6/Lower Caves | A Derelict revealed a hidden shortcut to a safe place 11149 | -6/Lower Caves | Found DCF Scrap (13 items) 11441 | -6/Lower Caves | Identified exit to Zion 11443 | -6/Lower Caves | Entered Zion 11444 | -6/Zion | Identified exit to Proximity Caves 11490 | -6/Zion | System corruption cleaned by Quarantine Array 11652 | -6/Zion | Learned location of Armory (-3) 11730 | -6/Zion | Build established: Mutant 12350 | -6/Zion | Given A8's code to call for help 12473 | -6/Zion | Turned away by Imprinter 12608 | -6/Zion | Gained Derelict followers 12634 | -6/Zion | Gained Derelict followers 13329 | -6/Zion | Entered Proximity Caves 13329 | -5/Proximity Caves | Accompanied by 6 allies 13332 | -5/Proximity Caves | Spotter reported a threat 13424 | -5/Proximity Caves | Build established: Scrapper 13616 | -5/Proximity Caves | Learned 4 Factory zone layouts 14045 | -5/Proximity Caves | Entered Factory 14045 | -5/Factory | Accompanied by 3 allies 14045 | -5/Factory | Evolved 2 slots: Propulsion x2 14046 | -5/Factory | Identified exit to Upper Caves 14047 | -5/Factory | Identified exit to Factory 14224 | -5/Factory | Loaded intel: 8 recycling unit locations 14234 | -5/Factory | Fabricated Y-72 Warden? 14312 | -5/Factory | Build established: Mutant 14445 | -5/Factory | Scrapoids reinforcements arrived? 14558 | -5/Factory | Lost 6 allies 14641 | -5/Factory | Found Active Sensor Suite 14689 | -5/Factory | Allied Derelicts emerged from ambush trap array 14842 | -5/Factory | Lost 3 allies 14850 | -5/Factory | Destroyed 13 combat bots 14892 | -5/Factory | Build established: Scavenger-Mutant 14945 | -5/Factory | First assault squad dispatched 15147 | -5/Factory | Entered Upper Caves 15147 | -5/Upper Caves | Spotted B-75 Beast 15148 | -5/Upper Caves | Identified exit to Upper Caves 15677 | -5/Upper Caves | Build established: Mutant 15814 | -5/Upper Caves | Learned location of 2 exits from Factory 15979 | -5/Upper Caves | Entered another Upper Caves area 15981 | -5/Upper Caves | Discovered new exit (range 130) 16113 | -5/Upper Caves | Attracted the attention of an 0b10 checkpoint 16357 | -5/Upper Caves | Found Alien Artifact 16357 | -5/Upper Caves | Identified Core Expander 16357 | -5/Upper Caves | Installed Core Expander, added new Weapon slot 16633 | -5/Upper Caves | Entered Zhirov 16633 | -5/Zhirov | Discovered new exit (range 3) 16662 | -5/Zhirov | Met Zhirov 16710 | -5/Zhirov | Zhirov requested help retrieving the SGEMP Prototype 16753 | -5/Zhirov | Found Alien Artifact 16900 | -5/Zhirov | Entered Proximity Caves 16953 | -4/Proximity Caves | Build established: Scavenger-Tank 17006 | -4/Proximity Caves | Learned 4 Research zone layouts 18085 | -4/Proximity Caves | Entered Factory 18085 | -4/Factory | Evolved 2 slots: Utility x2 18086 | -4/Factory | Identified exit to Upper Caves 18087 | -4/Factory | Identified exit to Extension 18087 | -4/Factory | Identified exit to Research 18129 | -4/Factory | Loaded intel: 8 recycling unit locations 18226 | -4/Factory | Discovered exit to Extension (range 18) 18280 | -4/Factory | Discovered exit to Upper Caves (range 26) 18307 | -4/Factory | Scrapoids reinforcements arrived? 18389 | -4/Factory | Build established: Scavenger-Scrapper 18588 | -4/Factory | Lost 3 allies 18915 | -4/Factory | P-70 Sage assimilated allied *coil 1 18957 | -4/Factory | Found Scrap Suit 19079 | -4/Factory | Entered Extension 19454 | -4/Extension | Disrupted transfer network 19560 | -4/Extension | Rescued a captive Derelict 19736 | -4/Extension | Rescued a captive Derelict 19755 | -4/Extension | Rescued a captive Derelict 19805 | -4/Extension | Rescued a captive Derelict 19806 | -4/Extension | Rescued a captive Derelict 19838 | -4/Extension | Scrapoid reinforcements arrived 19990 | -4/Extension | Found Scrap Suit 20018 | -4/Extension | Spotted B-86 Titan 20037 | -4/Extension | Allies destroyed B-86 Titan 20039 | -4/Extension | Spotted B-86 Titan 20046 | -4/Extension | Allies destroyed B-86 Titan 20127 | -4/Extension | Lost 7 allies 20374 | -4/Extension | Learned 4 Testing zone layouts 20448 | -4/Extension | Learned Armory stockpile data 20558 | -4/Extension | Rescued a captive Derelict 20564 | -4/Extension | Learned location of 1 exit from Proximity Caves 20571 | -4/Extension | Rescued a captive Derelict 20572 | -4/Extension | Rescued a captive Derelict 20587 | -4/Extension | Rescued a captive Derelict 20588 | -4/Extension | Rescued a captive Derelict 20603 | -4/Extension | Rescued a captive Derelict 20604 | -4/Extension | Rescued a captive Derelict 20606 | -4/Extension | Learned Research stockpile data 20626 | -4/Extension | Rescued A7 20656 | -4/Extension | Learned Research security intel 20850 | -4/Extension | Discovered exit to Research (range 16) 20852 | -4/Extension | Discovered new exit (range 15) 20889 | -4/Extension | Identified exit to Cetus 20899 | -4/Extension | Entered Cetus 20899 | -4/Cetus | Accompanied by 8 allies (A7) 20904 | -4/Cetus | Acquired a Cetus Manufacturing Module code from A7 20917 | -4/Cetus | Spotted Cetus Guard 20918 | -4/Cetus | Spotted Cetus Guard 20920 | -4/Cetus | Spotted Cetus Guard 20920 | -4/Cetus | Spotted Cetus Guard 20932 | -4/Cetus | Allies destroyed Cetus Guard 20934 | -4/Cetus | Destroyed Cetus Guard 20948 | -4/Cetus | Allies destroyed Cetus Guard 20953 | -4/Cetus | Allies destroyed Cetus Guard 21079 | -4/Cetus | Started Cetus Manufacturing Module 21104 | -4/Cetus | Manufactured an Enhanced Grunt 21129 | -4/Cetus | Manufactured an Enhanced Grunt 21154 | -4/Cetus | Manufactured an Enhanced Grunt 21179 | -4/Cetus | Manufactured an Enhanced Grunt 21204 | -4/Cetus | Manufactured an Enhanced Grunt 21241 | -4/Cetus | Discovered new exit (range 15) 21298 | -4/Cetus | Spotted Cetus Guard 21298 | -4/Cetus | Spotted Cetus Guard 21299 | -4/Cetus | Spotted Cetus Guard 21301 | -4/Cetus | Spotted Cetus Guard 21301 | -4/Cetus | Allies destroyed Cetus Guard 21311 | -4/Cetus | Allies destroyed Cetus Guard 21316 | -4/Cetus | Allies destroyed Cetus Guard 21353 | -4/Cetus | Lost 5 allies 21353 | -4/Cetus | Discovered exit to Research (range 16) 21368 | -4/Cetus | Met Revision 17 21516 | -4/Cetus | Murdered A7 21545 | -4/Cetus | Extracted ID and sensor layout for unrecognized location from A7's data core 21596 | -4/Cetus | Identified exit to Archives 21609 | -4/Cetus | Entered Archives 21609 | -4/Archives | Accompanied by 5 allies 21702 | -4/Archives | Discovered exit to Research (range 15) 21937 | -4/Archives | Discovered new exit (range 15) 21960 | -4/Archives | Identified exit to Hub_04(d) 21974 | -4/Archives | Entered Hub_04(d) 21974 | -4/Hub_04(d) | Accompanied by 5 allies 22565 | -4/Hub_04(d) | Network Hub disabled 22612 | -4/Hub_04(d) | Entered Research 22612 | -3/Research | Evolved 2 slots: Power x1, Utility x1 22613 | -3/Research | Identified exit to Research 22614 | -3/Research | Loaded intel: 95 trap records 22812 | -3/Research | Revision forces began assault on 0b10 22960 | -3/Research | Attached Cargo Legs, gained temporary slots: Utility x2 23122 | -3/Research | Discovered new exit (range 4) 23125 | -3/Research | Identified exit to Testing 23275 | -3/Research | Build established: Scavenger-Skirmisher 23312 | -3/Research | Research terminal network offline 23359 | -3/Research | Found Gamma Bomb Array 23643 | -3/Research | Spotted Striker 23652 | -3/Research | Lost 3 allies 23655 | -3/Research | Destroyed Striker 23689 | -3/Research | Destroyed 7 combat bots 23784 | -3/Research | Loaded intel: 5 recycling unit locations 23881 | -3/Research | Found Spectral Analyzer 23925 | -3/Research | Spotted Striker 23927 | -3/Research | Spotted Striker 23930 | -3/Research | Destroyed Striker 23940 | -3/Research | Destroyed Striker 24219 | -3/Research | Entered Testing 24260 | -3/Testing | Unstable Terrabomb Derivative detonated 24363 | -3/Testing | Found Prototype Hackware 24377 | -3/Testing | Identified Ghost Barrier 24569 | -3/Testing | Found Prototype Device 24570 | -3/Testing | Identified Exp. Weapon Cycler 24578 | -3/Testing | Found Prototype Reactor 24578 | -3/Testing | Identified Zero-point Reactor 24583 | -3/Testing | Found Prototype Processor 24596 | -3/Testing | Found Prototype Device 24605 | -3/Testing | Identified Exp. ECM Suite 24612 | -3/Testing | Found Zero-point Reactor 24813 | -3/Testing | Spotted Striker 24818 | -3/Testing | Destroyed Striker 24825 | -3/Testing | Spotted Striker 24831 | -3/Testing | Destroyed Striker 24847 | -3/Testing | Spotted Alpha 7 24856 | -3/Testing | Destroyed Alpha 7 24873 | -3/Testing | Found Prototype Energy Gun 24873 | -3/Testing | Identified Enh. Gamma Rifle 24895 | -3/Testing | Stole the SGEMP Prototype 24896 | -3/Testing | Identified Exp. Targeting Computer 25117 | -3/Testing | Found Exp. Signal Interpreter 25138 | -3/Testing | Build established: Scavenger-Gunner 25183 | -3/Testing | Found Prototype Leg 25219 | -3/Testing | Found Prototype Device 25219 | -3/Testing | Identified Exp. Hardlight Generator 25287 | -3/Testing | Found Prototype Device 25287 | -3/Testing | Identified AEGIS Remote Shield 25467 | -3/Testing | Build established: Scavenger-Skirmisher 25540 | -3/Testing | Found Prototype Ballistic Cannon 25540 | -3/Testing | Identified Perforator 25628 | -3/Testing | System corruption reached 10% 25643 | -3/Testing | Discovered exit to Research (range 5) 25719 | -3/Testing | First assault squad dispatched 25722 | -3/Testing | Entered Research 25722 | -2/Research | Evolved 2 slots: Utility x2 25734 | -2/Research | Loaded intel: 5 recycling unit locations 26210 | -2/Research | Identified exit to Garrison 26608 | -2/Research | Build established: Scavenger-Gunner 26722 | -2/Research | First assault squad dispatched 27210 | -2/Research | Identified exit to Quarantine 27355 | -2/Research | Discovered new exit (range 6) 27371 | -2/Research | Identified exit to Access 27502 | -2/Research | Entered Quarantine 27526 | -2/Quarantine | Identified Myomer Exoskeleton 27551 | -2/Quarantine | Found Alien Energy Cannon 27603 | -2/Quarantine | Found Alien Artifact 27761 | -2/Quarantine | Found Alien Slashing Weapon 27761 | -2/Quarantine | Identified Sigix Broadsword 28006 | -2/Quarantine | Discovered exit to Access (range 16) 28111 | -2/Quarantine | Found Alien Impact Weapon 28111 | -2/Quarantine | Identified Core Stripper 28113 | -2/Quarantine | Identified Core Cannon 28229 | -2/Quarantine | Found Alien Artifact 28229 | -2/Quarantine | Identified Dimensional Node Initializer 28229 | -2/Quarantine | Initialized slip node 28235 | -2/Quarantine | Found Dimensional Node Initializer 28239 | -2/Quarantine | Identified Transdimensional Reconstructor 28239 | -2/Quarantine | Warped through subspace to slip node 28243 | -2/Quarantine | Identified Subatomic Replicator 28247 | -2/Quarantine | Found Alien Artifact 28254 | -2/Quarantine | Found Transdimensional Reconstructor 28256 | -2/Quarantine | Found Alien Artifact 28267 | -2/Quarantine | Found Dimensional Node Initializer 28274 | -2/Quarantine | Identified Hpw. Transdimensional Reconstructor (x2) 28274 | -2/Quarantine | Warped through subspace to slip node 28343 | -2/Quarantine | Found Alien Reactor 28343 | -2/Quarantine | Identified Matter Drive 28679 | -2/Quarantine | Found Alien Artifact 28679 | -2/Quarantine | Identified Phase Armor 28895 | -2/Quarantine | Spotted Fortress 28988 | -2/Quarantine | Discovered new exit (range 6) 28988 | -2/Quarantine | Discovered new exit (range 6) 28993 | -2/Quarantine | Identified exit to Protoforge 28996 | -2/Quarantine | Identified exit to Section 7 29001 | -2/Quarantine | Entered Protoforge 29089 | -2/Protoforge | Enhanced Grunt warped into view, answering call for help 29095 | -2/Protoforge | Enhanced Grunt warped into view, answering call for help 29099 | -2/Protoforge | Superfortress began startup sequence 29105 | -2/Protoforge | Spotted Hotshot 29105 | -2/Protoforge | Spotted Hotshot 29134 | -2/Protoforge | Destroyed Hotshot 29142 | -2/Protoforge | Allies destroyed Hotshot 29263 | -2/Protoforge | Used Subatomic Replicator to create Alien Artifact 29735 | -2/Protoforge | Spotted SKR-2 29754 | -2/Protoforge | Spotted SKR-2 29756 | -2/Protoforge | Spotted SKR-2 29803 | -2/Protoforge | Spotted EXE-6 29813 | -2/Protoforge | Destroyed EXE-6 29831 | -2/Protoforge | Spotted EXE-6 29836 | -2/Protoforge | Destroyed SKR-2 29842 | -2/Protoforge | Core integrity fell below 50% 29850 | -2/Protoforge | Destroyed SKR-2 29871 | -2/Protoforge | Destroyed EXE-6 29881 | -2/Protoforge | Core integrity fell below 20% 29899 | -2/Protoforge | Identified Supercharged TR 29899 | -2/Protoforge | Warped through subspace 29899 | -2/Protoforge | Spotted Overlord 29905 | -2/Protoforge | Found Dimensional Node Initializer 29905 | -2/Protoforge | Destroyed by Overlord with Heavy Hardcell Cannon Last Messages --------------- 29892_ M-36 Artificer repairs SKR-2. 29892_ Machine disabled. 29892_ Connecting with Recycling Unit... 29892_ ALERT: Suspicious activity at Recycling Unit F003. Dispatching Investigation squad. 29898_ Recycling Unit disabled. 29898_ M-36 Artificer repairs SKR-2 Centrium Medium Armor Plating. 29899_ Identified Supercharged TR. 29899_ Warped through subspace. 29900_ M-36 Artificer repairs SKR-2. 29900_ Dropped Dimensional Node Initializer. 29900_ K-01 Serf cleans the Machine. 29902_ Acquired Dimensional Node Initializer. 29902_ Initializer activates but location unsuitable. 29903_ K-01 Serf cleans the Machine. 29904_ Enh. Biometal Leg destroyed. 29904_ Knocked back. 29904_ K-01 Serf cleans the Machine. 29905_ Acquired Dimensional Node Initializer. 29905_ K-01 Serf collects debris. Map ----- +----------------------------------------------------+ | ?????????????????????????????????????????????????? | | ?????????????????????????????????????????????????? | | ?????????????????????????????????????????????????? | | ?????????????????????????????????????????????????? | | ?????????????????????????????????????????????????? | | ?????????????????????????????????????????????????? | | ?????????????????????????????????????????????????? | | ?????????????????????????????????????????????????? | | ?????????????????????????????????????????????????? | | ??????????????????????"??????????????????????????? | | ???????????????????? ???????" "??????????????? | | ????????????????? """""??????" """"????????????? | | ???????????????# "" "" ?? " """""""?????????? | | ???????????????# "" " ? "" """""""""???????? | | ???????????????# "? " """"""""""""?????? | | ???????????????# "" " """""""""""""????? | | ???????????????# " ? """"""""""""""???? | | ???????????????# ?" """""""""""""""??? | | ??????????????## """ " " """""""""""""""""" | | ???????????????# " "" """""""""""""""""" | | ????????????#??#u """ " """""""""""""""""" | | ???????????????# " """ """"" " """""""""""""""""" | | ????? ????#??#?# k "" " """""""""""""""""" | | ????????#?##???# " """"""""""""""""" | | ??? ? #????##?# K """"""""""""""""" | | ???????????#??## """"%"@ m "" """"""""""""""""" | | ????T???? ? ?+ """ " " """""""""""""""" | | ??? ? ? + " " """"""""""""""" | | ??"?? ? ?? ?+ k ""k H """""""""""""" | | ????????####?### "" "" "" """"""""""""" | | ?"?" ?######### "" "" " "" """""""""""" | | ?"??? # [["# "" """ """"""""""" | | ??? # "" ## " " """""""" | | ?""""? #""" ## " "" w"" | | ??"? ?#"R ## " " """ "" " """"" " | | "?"? ?#""" ## " """ " | | """"??#""" ## "" " " "" | | ??? # ## " " "" " """ """ | | ? ? + """" ## " " """" """ | | ? ??# """" ## "" " " """ " "?" " | | ###+#### """" ## "" "" " " " " | | # """" "# " "" " | | # ## "" "" " """"" "" "" | | # ## "" " " " " | | " ## ? "" "" " | | ##"#####? ????? "?????? """ | | "" """ ######?## "" ????????????"""""""""" | | ""S"""%##?#####?? "?"?? ??????????????? "??? | | ##?#???###????????????????????????????#???? | | ###"######?#####????????#????????????????????????? | +----------------------------------------------------+ Best States ------------- Heat Dissipation 125 Coolant Potential 180 Energy Generation 93 Energy Capacity 820 Matter Stores 300 Matter Capacity 300 Sight Range 16 Robot Scan Range 20 Terrain Scan Range 14 Terrain Scan Density 210 Jamming Range 16 Cloak Strength 3 Power Amplification 30 Base Temperature (-) 200 Corruption Containment 12 Corruption Block 20 Armor Coverage 1600 Propulsion Shielding 90 Evasion (%) 55 Targeting Accuracy 12 Target Analysis 8 Recoil Reduction 6 Particle Charging 30 Authchip Count 2 Item Schematics ----------------- Huge Storage Unit | -10/Materials | Hacked Weapon Mount | -6/Factory | Hacked Imp. Trap Scanner | -6/Zion | Archive Imp. Focal Shield | -6/Zion | Archive Matter Compressor | -6/Zion | Archive Neutrino Core | -6/Zion | Archive EM Shield | -6/Zion | Archive Field Propulsion Drive | -6/Zion | Archive Hardcell Cannon | -6/Zion | Archive Adv. Reaction Control System | -6/Zion | Archive Power Amplifier | -6/Zion | Archive Tesla Rifle | -6/Zion | Archive Adv. Cooling System | -6/Zion | Archive Phase Cannon | -6/Zion | Archive Imp. Component Analysis Suite | -6/Zion | Archive Assault Drone Bay | -5/Zhirov | Free Exp. Heat Sink | -5/Zhirov | Free Exp. Optical Array | -5/Zhirov | Free Imp. Arc Thrower | -5/Zhirov | Free Electron Diverter | -3/Testing | Archive Kinetic Spear | -3/Testing | Archive Diametric Drive | -3/Testing | Archive Tactical Quantum Warhead | -2/Quarantine | Archive Adv. Plasma Rifle | -2/Quarantine | Archive Robot Schematics ------------------ T-07 Excavator | -9/Recycling | Hacked Y-54 Guardian | -6/Zion | Archive G-50 Soldier | -6/Zion | Archive K-01 Serf | -6/Zion | Archive Y-72 Warden | -6/Zion | Archive Fabricated ------------ Y-72 Warden | x2 | -5/Factory | Authchip Repaired ---------- Lgt. Treads | 57% | -10/Materials Alien Tech Used ----------------- Core Expander Sigix Broadsword Core Stripper Core Cannon Dimensional Node Initializer Transdimensional Reconstructor Subatomic Replicator High-powered Transdimensional Reconstructor Matter Drive Phase Armor Supercharged TR Achievements -------------- None Challenges ------------ None Game ------ Seed ImpulseChargeRifle Manual? 0 Play Time 14:08:17 Cumulative 438.7 hours Start 2025.06.29 @ 12:51:41 End 2025.07.30 @ 14:59:09 Sessions 59 Manual Loads 0 Difficulty Rogue Special Mode None Game No. 181 Rogue 181 Adventurer 0 Explorer 0 Win Type - Total 19 Types 12/0/3/2/0/1/0/1/0/0 Lore% 87 Gallery% 79 Achievement% 72 Wizard Run 0 Options --------- Layout 0 ASCII 0 Keyboard 0 Movement Numpad Keybinds 0 Fullscreen 2 Font 18/SmallcapsGlow Map View 76x50 Zoom Use 0% Tactical HUD 1 Map Filters NONE Filters NONE Steam 1 RUN: a0025348-c586-4e6c-93fc-9dbc714b640d